bitfinex-derivatives/quotes_BNBF0:USTF0_20230831
["timestamp","ask_amount","ask_price","bid_price","bid_amount"]
[1693448787844,0.07323283,223.08,222.76,0.82416534]
[1693448788045,0.07323283,223.08,222.75,0.82416534]
[1693448788246,0.07323283,223.08,222.76,0.82416534]
[1693448788552,0.07323283,223.08,222.77,0.82416534]
[1693448788743,0.07323283,223.08,222.75,0.82416534]
[1693448788944,0.07323283,223.08,222.76,0.82416534]
[1693448789143,0.07323283,223.08,222.77,0.82416534]
[1693448789339,0.07323283,223.08,222.78,0.82416534]
[1693448789547,0.07323283,223.08,222.79,0.82416534]
[1693448789745,0.07323283,223.08,222.74,0.82416534]
[1693448789943,0.07323283,223.08,222.75,0.82416534]
[1693448790143,0.07323283,223.08,222.74,0.82416534]
[1693448790343,0.07323283,223.08,222.75,0.82416534]
[1693448790543,0.07323283,223.08,222.74,0.82416534]
[1693448790747,0.07323283,223.08,222.75,0.82416534]
[1693448790947,0.07323283,223.08,222.73,0.07335436]
[1693448790948,0.07323283,223.08,222.76,0.82416534]
[1693448791149,0.07323283,223.08,222.77,0.82416534]
[1693448791343,0.07323283,223.08,222.78,0.82416534]
[1693448791649,0.07323283,223.09,222.79,0.82416534]
[1693448791850,0.07323283,223.09,222.74,0.82416534]
[1693448792050,0.07323283,223.09,222.75,0.82416534]
[1693448792251,0.07323283,223.09,222.74,0.82416534]
[1693448792451,0.07323283,223.09,222.75,0.82416534]
[1693448792653,0.07323283,223.09,222.76,0.82416534]
[1693448792853,0.07323283,223.09,222.77,0.82416534]
[1693448793054,0.07323283,223.09,222.78,0.82416534]
[1693448793358,0.07323283,223.09,222.79,0.82416534]
[1693448793651,0.07323283,223.08,222.8,0.82416534]
[1693448793852,0.07323283,223.08,222.73,0.82416534]
[1693448794049,0.07323283,223.08,222.74,0.82416534]
[1693448794247,0.07323283,223.08,222.73,0.82416534]
[1693448794553,0.07323283,223.09,222.74,0.82416534]
[1693448794851,0.07323283,223.09,222.75,0.82416534]
[1693448795155,0.07323283,223.08,222.76,0.82416534]
[1693448795355,0.07323283,223.08,222.77,0.82416534]
[1693448795551,0.07323283,223.09,222.73,0.82416534]
[1693448798256,0.07323283,223.08,222.73,0.82416534]
[1693448798748,0.07323283,223.08,222.74,0.82416534]
[1693448798953,0.07323283,223.08,222.75,0.82416534]
[1693448799253,0.07323283,223.08,222.76,0.82416534]
[1693448799450,0.07323283,223.08,222.72,0.82416534]
[1693448799653,0.07323283,223.08,222.73,0.82416534]
[1693448799953,0.07323283,223.08,222.74,0.82416534]
[1693448800251,0.07323283,223.08,222.75,0.82416534]
[1693448800449,0.07323283,223.08,222.72,0.82416534]
[1693448800651,0.07323283,223.08,222.73,0.82416534]
[1693448800855,0.07323283,223.08,222.72,0.82416534]
[1693448801156,0.07323283,223.08,222.71,0.07335436]
[1693448801157,0.07323283,223.08,222.73,0.82416534]
[1693448801355,0.07323283,223.08,222.72,0.82416534]
[1693448801556,0.07323283,223.08,222.73,0.82416534]
[1693448801754,0.07323283,223.08,222.72,0.82416534]
[1693448801953,0.07323283,223.08,222.73,0.82416534]
[1693448802256,0.07323283,223.08,222.74,0.82416534]
[1693448802456,0.07323283,223.08,222.72,0.82416534]
[1693448802656,0.07323283,223.07,222.73,0.82416534]
[1693448802857,0.07323283,223.08,222.72,0.82416534]
[1693448803057,0.07323283,223.07,222.73,0.82416534]
[1693448803257,0.07323283,223.07,222.71,0.07335436]
[1693448803258,0.07323283,223.08,222.72,0.82416534]
[1693448803459,0.07323283,223.07,222.73,0.82416534]
[1693448803655,0.07323283,223.07,222.72,0.82416534]
[1693448803858,0.07323283,223.07,222.73,0.82416534]
[1693448804058,0.07323283,223.07,222.74,0.82416534]
[1693448804259,0.07323283,223.07,222.75,0.82416534]
[1693448804454,0.07323283,223.07,222.72,0.82416534]
[1693448805363,0.07323283,223.06,222.72,0.82416534]
[1693448805566,0.07323283,223.06,222.71,0.82416534]
[1693448805760,0.07323283,223.06,222.72,0.82416534]
[1693448805962,0.07323283,223.06,222.71,0.82416534]
[1693448806162,0.07323283,223.06,222.72,0.82416534]
[1693448806361,0.07323283,223.06,222.71,0.82416534]
[1693448806556,0.07323283,223.06,222.7,0.07335436]
[1693448806557,0.07323283,223.06,222.72,0.82416534]
[1693448806757,0.07323283,223.06,222.73,0.82416534]
[1693448806962,0.07323283,223.06,222.74,0.82416534]
[1693448807259,0.07323283,223.06,222.75,0.82416534]
[1693448807464,0.07323283,223.06,222.76,0.82416534]
[1693448807665,0.07323283,223.06,222.71,0.82416534]
[1693448807865,0.07323283,223.06,222.72,0.82416534]
[1693448808060,0.07323283,223.06,222.71,0.82416534]
[1693448808266,0.07323283,223.06,222.72,0.82416534]
[1693448808463,0.07323283,223.06,222.71,0.8975197]
[1693448808766,0.07323283,223.05,222.72,0.82416534]
[1693448810567,0.07323283,223.05,222.72,0.8975197]
[1693448810766,0.07323283,223.05,222.73,0.82416534]
[1693448811470,0.07323283,223.04,222.73,0.82416534]
[1693448812670,0.07323283,223.03,222.73,0.8975197]
[1693448812870,0.07323283,223.03,222.74,0.82416534]
[1693448813570,0.07323283,223.02,222.74,0.8975197]
[1693448813771,0.07323283,223.02,222.75,0.82416534]
[1693448814571,0.07323283,223.01,222.76,0.07335436]
[1693448814769,0.07323283,223.01,222.77,0.82416534]
[1693448820673,0.07323283,223.02,222.77,0.82416534]
[1693448821678,0.07323283,223.01,222.77,0.82416534]
[1693448821877,0.14646566,223.04,222.77,0.82416534]
[1693448821878,0.07323283,223.02,222.77,0.8975197]
[1693448822077,0.07323283,223.02,222.78,0.82416534]
[1693448823678,0.14646566,223.04,222.78,0.82416534]
[1693448823679,0.07323283,223.01,222.78,0.82416534]
[1693448829583,0.07323283,223.01,222.78,0.8975197]
[1693448829779,0.07323283,223.01,222.79,0.82416534]
[1693448830585,0.07323283,223.0,222.79,0.82416534]
[1693448830884,0.07323283,223.0,222.77,0.07335436]
[1693448831086,0.07323283,223.0,222.78,0.8242112]
[1693448831685,0.07323283,223.0,222.78,0.89756556]
[1693448831981,0.07323283,223.0,222.79,0.8242112]
[1693448846490,0.07323283,222.99,222.79,0.8242112]
[1693448854507,0.07323283,222.99,222.79,0.89756556]
[1693448854805,0.07323283,222.99,222.78,0.07335436]
[1693448855000,0.07323283,222.99,222.79,0.82420681]
[1693448867320,0.07323283,222.99,222.79,0.89756117]
[1693448867616,0.07323283,222.99,222.79,0.07335436]
[1693448868218,0.07323283,222.99,222.78,0.07335436]
[1693448868418,0.07323283,222.99,222.79,0.82420812]
[1693448870322,0.07323283,222.99,222.79,0.89756248]
[1693448870517,0.07323283,222.99,222.78,0.07335436]
[1693448870719,0.07323283,222.99,222.79,0.89755855]
[1693448871014,0.07323283,222.99,222.79,0.07335436]
[1693448875120,0.07323283,222.99,222.8,0.82419463]
[1693448875322,0.07323283,222.99,222.79,0.07335436]
[1693448876318,0.07323283,222.99,222.78,0.07335436]
[1693448876624,0.07323283,223.0,222.79,0.89758596]
[1693448876824,0.07323283,223.0,222.8,0.8242316]
[1693448909349,0.07323283,222.99,222.8,0.8242316]
[1693448912355,0.07323283,222.99,222.8,0.89758596]
[1693448912552,0.07323283,222.99,222.8,0.07335436]
[1693448915359,0.07323283,222.99,222.79,0.07335436]
[1693448915562,0.07323283,222.99,222.8,0.82422868]
[1693448918661,2.4410943,223.13,222.8,0.82422868]
[1693448918863,0.07345938,222.99,222.79,0.07358462]
[1693448919162,0.07345938,222.99,222.8,0.82422768]
[1693448933765,0.07345938,222.99,222.8,0.8978123]
[1693448933959,0.07345938,222.99,222.8,0.07358462]
[1693448936667,0.07345938,222.99,222.79,0.07358462]
[1693448936869,0.07345938,222.99,222.8,0.82422847]
[1693448937369,0.07345938,222.99,222.8,0.89781309]
[1693448937568,0.07345938,222.99,222.8,0.07358462]
[1693448946371,0.07345938,222.99,222.79,0.07358462]
[1693448946672,0.07345938,222.99,222.8,0.82422141]
[1693448951175,0.07345938,222.99,222.8,0.89780603]
[1693448951375,0.07345938,222.99,222.8,0.07358462]
[1693448951773,0.07345938,222.99,222.79,0.07358462]
[1693448951973,0.07345938,222.99,222.8,0.82421926]
[1693448965478,0.07345938,222.99,222.79,0.07358462]
[1693448965678,0.07345938,222.99,222.78,0.07358462]
[1693448965880,0.07345938,222.99,222.79,0.82424266]
[1693448994415,0.07345938,222.99,222.79,0.89782728]
[1693448994613,0.07345938,222.99,222.79,0.07358462]
[1693448995515,0.07345938,222.98,222.79,0.07358462]
[1693448996516,0.07345938,222.98,222.78,0.07358462]
[1693448996817,0.07345938,222.98,222.79,0.82424871]
[1693449002916,0.07345938,222.98,222.78,0.07358462]
[1693449003922,0.07345938,222.98,222.79,0.82427782]
[1693449004525,0.07345938,222.98,222.77,0.07358462]
[1693449004720,0.07345938,222.98,222.78,0.82429681]
[1693449006823,0.07345938,222.98,222.76,0.07358462]
[1693449007027,0.07345938,222.98,222.77,0.82430116]
[1693449010829,0.07345938,222.99,222.77,0.82430116]
[1693449021636,0.07345938,222.99,222.77,0.89788578]
[1693449021936,0.07345938,222.99,222.78,0.82430116]
[1693449034344,0.07345938,222.98,222.78,0.82430116]
[1693449039250,0.48972921,223.03,222.78,0.82430116]
[1693449039251,0.07345938,222.99,222.78,0.89788578]
[1693449039449,0.07345938,222.98,222.79,0.82430116]
[1693449039749,0.07345938,222.98,222.77,0.07358462]
[1693449039949,0.07345938,222.98,222.78,0.82427059]
[1693449042152,0.07345938,222.98,222.77,0.07358462]
[1693449042354,0.07345938,222.92,222.71,0.07358462]
[1693449042746,0.07345938,222.94,222.68,0.07358462]
[1693449042945,0.07345938,222.94,222.72,0.82453699]
[1693449043350,0.07345938,222.94,222.68,0.07358462]
[1693449043551,0.07345938,222.95,222.69,0.82455914]
[1693449043752,0.07345938,222.95,222.7,0.82455914]
[1693449043946,0.07345938,222.95,222.67,0.82455914]
[1693449044152,0.07345938,222.95,222.68,0.82455914]
[1693449044454,0.07345938,222.95,222.69,0.82455914]
[1693449044654,2.448646,223.09,222.7,0.82455914]
[1693449044655,0.07345938,222.96,222.7,0.82455914]
[1693449044854,0.07345938,222.96,222.66,0.82455914]
[1693449045055,0.07345938,222.96,222.67,0.82455914]
[1693449045255,0.07345938,222.96,222.66,0.82455914]
[1693449045457,0.07345938,222.96,222.67,0.82455914]
[1693449045655,0.07345938,222.97,222.68,0.82455914]
[1693449045848,0.07345938,222.97,222.69,0.82455914]
[1693449046050,0.07345938,222.97,222.7,0.82455914]
[1693449046252,0.07345938,222.97,222.65,0.82455914]
[1693449046456,0.07345938,222.97,222.66,0.82455914]
[1693449046656,0.07345938,222.97,222.67,0.82455914]
[1693449046856,0.07345938,222.97,222.68,0.82455914]
[1693449047054,0.07345938,222.97,222.65,0.82455914]
[1693449047252,0.07345938,222.97,222.66,0.82455914]
[1693449047455,0.07345938,222.97,222.65,0.82455914]
[1693449047653,0.07345938,222.98,222.66,0.82455914]
[1693449047851,0.07345938,222.98,222.64,0.82455914]
[1693449048056,0.07345938,222.98,222.65,0.82455914]
[1693449048257,0.07345938,222.98,222.64,0.82455914]
[1693449048455,0.07345938,222.98,222.65,0.82455914]
[1693449048759,0.07345938,222.98,222.66,0.82455914]
[1693449049059,0.07345938,222.98,222.63,0.07358462]
[1693449049060,0.07345938,222.98,222.67,0.82455914]
[1693449049360,0.07345938,222.98,222.68,0.82455914]
[1693449049659,0.07345938,222.99,222.69,0.82455914]
[1693449049859,0.07345938,222.99,222.7,0.82455914]
[1693449050056,0.07345938,222.99,222.71,0.82455914]
[1693449050263,0.07345938,222.99,222.63,0.07358462]
[1693449050461,0.07345938,222.99,222.64,0.82456333]
[1693449050656,0.07345938,222.99,222.63,0.82456333]
[1693449050858,0.07345938,222.99,222.64,0.82456333]
[1693449051059,0.07345938,222.99,222.65,0.82456333]
[1693449051361,0.07345938,222.99,222.66,0.82456333]
[1693449051563,0.07345938,222.99,222.63,0.82456333]
[1693449053564,0.07345938,223.0,222.64,0.82456333]
[1693449053766,0.07345938,223.0,222.65,0.82456333]
[1693449054065,0.07345938,223.0,222.66,0.82456333]
[1693449054265,0.07345938,223.0,222.62,0.82456333]
[1693449057662,0.07345938,223.0,222.62,0.82456333]
[1693449057864,0.07345938,223.0,222.61,0.07358462]
[1693449057865,0.07345938,223.0,222.63,0.82456333]
[1693449058065,0.07345938,223.0,222.64,0.82456333]
[1693449058265,0.07345938,223.0,222.65,0.82456333]
[1693449058466,0.07345938,223.0,222.62,0.82456333]
[1693449058667,0.07345938,223.0,222.63,0.82456333]
[1693449058866,0.07345938,223.0,222.64,0.82456333]
[1693449059068,0.07345938,223.0,222.65,0.82456333]
[1693449059267,0.07345938,223.0,222.62,0.82456333]
[1693449059569,0.07345938,223.0,222.63,0.82456333]
[1693449059766,0.07345938,223.0,222.64,0.82456333]
[1693449059966,0.07345938,223.0,222.62,0.82456333]
[1693449060176,0.07345938,223.0,222.63,0.82456333]
[1693449060470,0.07345938,223.0,222.64,0.82456333]
[1693449060668,0.07345938,223.0,222.65,0.82456333]
[1693449060868,0.07345938,223.0,222.62,0.82456333]
[1693449061064,0.07345938,223.0,222.63,0.82456333]
[1693449061265,0.07345938,223.0,222.64,0.82456333]
[1693449061461,0.07345938,223.0,222.65,0.82456333]
[1693449061665,0.07345938,223.0,222.62,0.82456333]
[1693449061866,0.07345938,223.0,222.63,0.82456333]
[1693449062065,0.07345938,223.0,222.64,0.82456333]
[1693449062266,0.07345938,223.0,222.62,0.82456333]
[1693449062564,0.07345938,223.0,222.63,0.82456333]
[1693449062767,0.07345938,223.0,222.64,0.82456333]
[1693449063068,0.07345938,223.0,222.65,0.82456333]
[1693449063364,0.07345938,223.0,222.66,0.82456333]
[1693449063565,0.07345938,223.0,222.67,0.82456333]
[1693449063766,0.07345938,223.0,222.68,0.82456333]
[1693449063963,0.07345938,222.99,222.61,0.82456333]
[1693449064167,0.07345938,223.0,222.62,0.82456333]
[1693449064368,0.07345938,223.0,222.63,0.82456333]
[1693449064569,0.07345938,222.99,222.61,0.82456333]
[1693449064768,0.07345938,222.99,222.62,0.82456333]
[1693449068571,0.07345938,222.98,222.62,0.82456333]
[1693449069472,0.07345938,222.98,222.62,0.89814795]
[1693449069673,0.07345938,222.98,222.63,0.82456333]
[1693449070874,0.07345938,222.97,222.63,0.82456333]
[1693449071499,0.07345938,222.97,222.63,0.89814795]
[1693449071776,0.07345938,222.97,222.64,0.82456333]
[1693449072675,0.07345938,222.96,222.64,0.82456333]
[1693449073269,0.07345938,222.96,222.64,0.89814795]
[1693449073475,0.07345938,222.96,222.65,0.82456333]
[1693449073673,0.07345938,222.96,222.4,0.98112834]
[1693449073674,0.07345938,222.96,222.66,0.82456333]
[1693449073974,0.07345938,222.96,222.67,0.82456333]
[1693449074276,0.07345938,222.96,222.68,0.82456333]
[1693449074476,0.07345938,222.96,222.69,0.82456333]
[1693449074676,0.07345938,222.95,222.65,0.89814795]
[1693449074877,0.07345938,222.95,222.66,0.82456333]
[1693449075678,0.07345938,222.93,222.67,0.07358462]
[1693449075877,0.07345938,222.93,222.68,0.82456333]
[1693449076579,0.07345938,222.91,222.69,0.07358462]
[1693449076780,0.07345938,222.91,222.7,0.82456333]
[1693449077879,0.07345938,222.9,222.7,0.82456333]
[1693449084181,0.07345938,222.9,222.7,0.89814795]
[1693449084405,0.07345938,222.91,222.71,0.82456333]
[1693449084580,0.07345938,222.92,222.71,0.89814795]
[1693449084779,0.07345938,222.92,222.72,0.82456333]
[1693449085683,0.07345938,222.92,222.7,0.07358462]
[1693449085883,0.07345938,222.92,222.71,0.82453479]
[1693449093282,0.07345938,222.92,222.7,0.89811941]
[1693449093485,0.07345938,222.92,222.71,0.82453479]
[1693449096487,0.07345938,222.93,222.71,0.82453479]
[1693449107602,0.07345938,222.97,222.74,0.07358462]
[1693449107898,0.07345938,222.98,222.75,0.82453479]
[1693449108098,0.07345938,222.98,222.74,0.82453479]
[1693449108298,0.07345938,222.98,222.75,0.82453479]
[1693449108522,0.07345938,222.98,222.74,0.82453479]
[1693449108704,0.07345938,222.98,222.75,0.82453479]
[1693449108918,0.97945842,223.06,222.73,0.07358462]
[1693449108919,0.07345938,222.99,222.76,0.82453479]
[1693449109098,0.07345938,222.99,222.74,0.82453479]
[1693449109295,0.07345938,222.99,222.75,0.82453479]
[1693449109494,0.07345938,222.99,222.74,0.82453479]
[1693449109700,0.07345938,222.99,222.75,0.82453479]
[1693449109902,0.07345938,223.0,222.74,0.82453479]
[1693449110203,0.07345938,223.0,222.75,0.82453479]
[1693449110397,0.07345938,223.0,222.76,0.82453479]
[1693449110600,0.07345938,223.0,222.73,0.82453479]
[1693449110901,0.07345938,223.0,222.72,0.07358462]
[1693449110902,0.07345938,223.0,222.74,0.82453479]
[1693449111103,0.07345938,223.0,222.75,0.82453479]
[1693449111304,0.07345938,223.0,222.73,0.82453479]
[1693449111506,0.07345938,223.0,222.74,0.82453479]
[1693449111805,0.07345938,223.0,222.75,0.82453479]
[1693449112002,0.07345938,223.0,222.72,0.82453479]
[1693449112199,0.07345938,223.0,222.73,0.82453479]
[1693449112402,0.07345938,223.0,222.74,0.82453479]
[1693449112699,0.07345938,223.0,222.75,0.82453479]
[1693449112904,0.07345938,223.01,222.76,0.82453479]
[1693449113206,0.07345938,223.01,222.77,0.82453479]
[1693449113405,0.07345938,223.01,222.71,0.07358462]
[1693449113607,0.07345938,223.01,222.72,0.82430486]
[1693449115006,0.07345938,223.02,222.72,0.82430486]
[1693449115301,0.07345938,223.01,222.72,0.82430486]
[1693449115807,0.07345938,223.02,222.72,0.82430486]
[1693449117106,0.07345938,223.02,222.73,0.82430486]
[1693449117309,0.07345938,223.02,222.71,0.82430486]
[1693449117608,0.07345938,223.02,222.72,0.82430486]
[1693449117803,0.07345938,223.02,222.71,0.82430486]
[1693449118007,0.07345938,223.02,222.72,0.82430486]
[1693449118207,0.07345938,223.02,222.71,0.82430486]
[1693449118508,0.07345938,223.02,222.72,0.82430486]
[1693449118711,0.07345938,223.02,222.73,0.82430486]
[1693449118909,0.07345938,223.02,222.74,0.82430486]
[1693449119109,0.07345938,223.02,222.7,0.07358462]
[1693449119110,0.07345938,223.02,222.75,0.82430486]
[1693449119310,0.07345938,223.02,222.76,0.82430486]
[1693449119510,0.07345938,223.02,222.71,0.82430486]
[1693449119711,0.07345938,223.02,222.72,0.82430486]
[1693449119904,0.07345938,223.02,222.71,0.82430486]
[1693449120211,0.07345938,223.02,222.72,0.82430486]
[1693449120412,0.07345938,223.02,222.71,0.82430486]
[1693449122930,0.07345938,223.03,222.71,0.82430486]
[1693449131514,0.07345938,223.02,222.71,0.82430486]
[1693449131814,0.07345938,223.02,222.71,0.89788948]
[1693449132013,0.07345938,223.02,222.72,0.82430486]
[1693449135916,0.14691876,223.04,222.72,0.82430486]
[1693449135917,0.07345938,223.01,222.72,0.82430486]
[1693449136819,0.07345938,223.01,222.72,0.89788948]
[1693449137018,0.07345938,223.01,222.73,0.82430486]
[1693449137720,0.07345938,223.02,222.73,0.82430486]
[1693449138015,0.07345938,223.01,222.73,0.89788948]
[1693449138222,0.07345938,223.01,222.74,0.82430486]
[1693449139924,0.07345938,223.0,222.74,0.89788948]
[1693449140123,0.07345938,223.0,222.75,0.82430486]
[1693449140825,0.07345938,223.0,222.75,0.89788948]
[1693449141019,0.07345938,223.0,222.76,0.82430486]
[1693449141422,0.07345938,222.99,222.76,0.82430486]
[1693449141819,2.448646,223.13,222.76,0.82430486]
[1693449141820,0.07345938,222.98,222.77,0.07358462]
[1693449142025,0.07345938,222.98,222.78,0.82430486]
[1693449142823,0.07345938,222.98,222.76,0.07358462]
[1693449143019,0.07345938,222.98,222.77,0.82425358]
[1693449144028,0.07345938,222.97,222.77,0.82425358]
[1693449144921,0.07345938,222.97,222.75,0.07358462]
[1693449145125,0.07345938,222.97,222.76,0.82430309]
[1693449145520,0.07345938,222.97,222.76,0.89788771]
[1693449145724,0.07345938,222.97,222.77,0.82430309]
[1693449177650,0.07345938,222.96,222.77,0.82430309]
[1693449182653,2.448646,223.1,222.77,0.82430309]
[1693449182654,0.07345938,222.97,222.77,0.89788771]
[1693449182850,0.07345938,222.97,222.77,0.07358462]
[1693449183354,0.07345938,222.96,222.76,0.07358462]
[1693449183553,0.07345938,222.96,222.77,0.82430503]
[1693449189253,0.07345938,222.96,222.77,0.89788965]
[1693449189449,0.07345938,222.96,222.76,0.07358462]
[1693449189654,0.07345938,222.96,222.77,0.82430038]
[1693449204969,0.07345938,222.96,222.76,0.07358462]
[1693449205170,0.07345938,222.96,222.77,0.82431519]
[1693449222984,0.07345938,222.97,222.77,0.89789981]
[1693449223177,0.07345938,222.97,222.77,0.07358462]
[1693449223582,0.07345938,222.97,222.76,0.07358462]
[1693449223782,0.07345938,222.97,222.77,0.82429361]
[1693449224985,0.07345938,222.97,222.77,0.89787823]
[1693449225181,0.07345938,222.97,222.78,0.82429361]
[1693449225487,0.07345938,222.97,222.77,0.07358462]
[1693449226611,0.07345938,222.97,222.76,0.07358462]
[1693449226789,0.07345938,222.97,222.77,0.82428699]
[1693449250602,0.07345938,222.98,222.77,0.82428699]
[1693449250796,0.07345938,222.97,222.77,0.82428699]
[1693449253507,0.07345938,222.97,222.77,0.89787161]
[1693449253712,0.07345938,222.97,222.78,0.82428699]
[1693449254107,0.07345938,222.97,222.76,0.07358462]
[1693449254307,0.07345938,222.97,222.77,0.82428581]
[1693449255010,0.07345938,222.98,222.77,0.89787043]
[1693449255210,0.07345938,222.98,222.78,0.82428581]
[1693449257703,0.07345938,222.99,222.78,0.89787043]
[1693449257909,0.07345938,222.99,222.79,0.82428581]
[1693449259507,0.07345938,222.99,222.77,0.07358462]
[1693449259706,0.07345938,222.99,222.78,0.82422253]
[1693449264214,0.07345938,223.0,222.78,0.82422253]
[1693449278229,0.07345938,222.99,222.78,0.82422253]
[1693449279123,0.07345938,223.0,222.78,0.82422253]
[1693449284928,0.07345938,222.99,222.78,0.82422253]
[1693449286331,0.07345938,222.99,222.78,0.89780715]
[1693449286521,0.07345938,222.99,222.71,0.14716925]
[1693449286522,0.07345938,222.99,222.79,0.82422253]
[1693449286830,0.07345938,222.99,222.77,0.07358462]
[1693449287027,0.07345938,222.99,222.78,0.82421907]
[1693449287231,0.07345938,222.99,222.78,0.89780369]
[1693449287432,0.07345938,222.99,222.79,0.82421907]
[1693449290233,0.07345938,222.98,222.79,0.82421907]
[1693449300644,0.07345938,222.99,222.79,0.89780369]
[1693449300839,0.07345938,222.99,222.78,0.07358462]
[1693449301037,0.07345938,222.99,222.79,0.82421303]
[1693449304245,0.07345938,222.98,222.79,0.82421303]
[1693449304743,0.07345938,222.99,222.79,0.82421303]
[1693449305343,0.07345938,222.98,222.79,0.82421303]
[1693449349275,0.07345938,222.99,222.79,0.89779765]
[1693449349472,0.07345938,222.99,222.73,0.14716925]
[1693449349473,0.07345938,222.99,222.84,0.07358462]
[1693449349673,0.07345938,223.05,222.85,0.07358462]
[1693449349867,0.07345938,223.05,222.85,0.89779765]
[1693449350070,0.07345938,223.05,222.86,0.82421303]
[1693449350468,0.07345938,223.08,222.86,0.82421303]
[1693449350669,0.07345938,223.08,222.82,0.07358462]
[1693449350869,0.07345938,223.08,222.83,0.82393187]
[1693449351374,0.14691876,223.1,222.83,0.82393187]
[1693449351375,0.07345938,223.09,222.83,0.82393187]
[1693449351873,0.07345938,223.09,222.84,0.82393187]
[1693449352070,0.07345938,223.09,222.82,0.82393187]
[1693449352276,0.07345938,223.09,222.83,0.82393187]
[1693449352475,0.07345938,223.1,222.84,0.82393187]
[1693449352676,0.07345938,223.1,222.8,0.07358462]
[1693449352677,0.07345938,223.1,222.81,0.82393187]
[1693449352975,0.07345938,223.1,222.82,0.82393187]
[1693449353171,0.07345938,223.1,222.83,0.82393187]
[1693449353370,0.07345938,223.11,222.81,0.82393187]
[1693449353570,0.07345938,223.11,222.82,0.82393187]
[1693449353775,0.07345938,223.11,222.83,0.82393187]
[1693449354075,0.07345938,223.11,222.84,0.82393187]
[1693449354275,0.07345938,223.11,222.85,0.82393187]
[1693449354478,0.07345938,223.12,222.8,0.82393187]
[1693449354671,0.07345938,223.12,222.81,0.82393187]
[1693449354873,0.07345938,223.12,222.82,0.82393187]
[1693449355078,0.07345938,223.12,222.8,0.82393187]
[1693449355278,0.07345938,223.12,222.81,0.82393187]
[1693449355477,0.07345938,223.12,222.82,0.82393187]
[1693449355677,0.07345938,223.12,222.79,0.82393187]
[1693449355875,0.07345938,223.12,222.8,0.82393187]
[1693449356074,0.07345938,223.12,222.79,0.82393187]
[1693449356278,0.07345938,223.12,222.8,0.82393187]
[1693449356576,0.07345938,223.13,222.81,0.82393187]
[1693449356779,0.07345938,223.13,222.82,0.82393187]
[1693449356976,0.07345938,223.13,222.83,0.82393187]
[1693449357174,0.07345938,223.13,222.79,0.82393187]
[1693449357371,0.07345938,223.13,222.8,0.82393187]
[1693449357575,0.07345938,223.13,222.81,0.82393187]
[1693449357777,0.07345938,223.13,222.82,0.82393187]
[1693449357980,0.07345938,223.13,222.83,0.82393187]
[1693449358274,0.07345938,223.13,222.84,0.82393187]
[1693449358473,0.07345938,223.13,222.85,0.82393187]
[1693449358674,0.07345938,223.13,222.86,0.82393187]
[1693449358979,0.07345938,223.13,222.77,0.07358462]
[1693449359179,0.07345938,223.13,222.78,0.82393124]
[1693449359372,0.07345938,223.14,222.78,0.82393124]
[1693449362482,0.07345938,223.14,222.79,0.82393124]
[1693449362683,0.07345938,223.14,222.8,0.82393124]
[1693449362983,0.07345938,223.14,222.81,0.82393124]
[1693449363185,0.07345938,223.14,222.82,0.82393124]
[1693449363388,0.07345938,223.14,222.83,0.82393124]
[1693449363588,0.07345938,223.14,222.84,0.82393124]
[1693449363782,0.07345938,223.14,222.85,0.82393124]
[1693449363986,0.07345938,223.14,222.86,0.82393124]
[1693449364182,0.07345938,223.14,222.87,0.82393124]
[1693449364383,0.07345938,223.15,222.76,0.07358462]
[1693449364584,0.07345938,223.15,222.77,0.82393395]
[1693449364889,0.07345938,223.14,222.77,0.82393395]
[1693449365390,0.07345938,223.15,222.77,0.82393395]
[1693449372293,0.07345938,223.15,222.77,0.89751857]
[1693449372495,0.07345938,223.14,222.78,0.82393395]
[1693449376497,2.448646,223.27,222.78,0.89751857]
[1693449376498,0.07345938,223.13,222.78,0.89751857]
[1693449376698,0.07345938,223.13,222.79,0.82393395]
[1693449378498,0.07345938,223.12,222.79,0.82393395]
[1693449378995,0.14691876,223.15,222.79,0.89751857]
[1693449378996,0.07345938,223.13,222.79,0.89751857]
[1693449379193,0.07345938,223.12,222.8,0.82393395]
[1693449380394,0.07345938,223.11,222.8,0.89751857]
[1693449380595,0.07345938,223.11,222.81,0.82393395]
[1693449381397,0.07345938,223.11,222.81,0.89751857]
[1693449381591,0.07345938,223.11,222.82,0.82393395]
[1693449382604,2.448646,223.24,222.82,0.82393395]
[1693449382605,0.07345938,223.1,222.82,0.89751857]
[1693449382793,0.07345938,223.1,222.83,0.82393395]
[1693449383398,0.07345938,223.08,222.83,0.89751857]
[1693449383592,0.07345938,223.08,222.84,0.82393395]
[1693449384504,0.07345938,223.06,222.86,0.07358462]
[1693449384700,0.07345938,223.06,222.87,0.82393395]
[1693449393401,0.07345938,223.05,222.87,0.82393395]
[1693449393608,0.07345938,223.05,222.85,0.07358462]
[1693449393907,0.07345938,223.06,222.86,0.82393112]
[1693449394308,0.07345938,223.05,222.86,0.89751574]
[1693449394607,0.07345938,223.05,222.87,0.82393112]
[1693449394806,0.07345938,223.06,222.87,0.82393112]
[1693449397311,0.07345938,223.05,222.87,0.82393112]
[1693449399112,0.07345938,223.06,222.87,0.82393112]
[1693449410919,0.07345938,223.05,222.85,0.07358462]
[1693449411116,0.07345938,223.05,222.86,0.82354251]
[1693449414420,0.07345938,223.06,222.86,0.89712713]